[Event "Kerkinitida 2021"]
[Site "Yevpatoria"]
[Date "2021.10.19"]
[Round "1.6"]
[White "Tomilova, Elena"]
[Black "Cherunov, Svyatoslav"]
[Result "1-0"]
[ECO "D07"]
[WhiteElo "2256"]
[BlackElo "1240"]
[Annotator "RC"]
[PlyCount "55"]
[EventDate "2021.10.19"]
[EventType "swiss"]
[SourceTitle "playchess.com"]
[Source "ChessBase"]
[SourceQuality "1"]
[TimeControl "5400+30"]

1. c4 {[%emt 0:00:02]} Nf6 {[%emt 0:00:12]} 2. Nf3 {[%emt 0:00:07]} Nc6 {[%emt 0:00:13]} 3. d4 {[%emt 0:00:25]} d5 {[%emt 0:00:09]} 4. cxd5 {[%emt 0:00:23]} Nxd5 {[%emt 0:00:22]} 5. e4 {[%emt 0:00:27]} Nf6 {[%emt 0:00:33]} 6. Nc3 {[%emt 0:00:19]} e6 {[%emt 0:00:15]} 7. Bd3 {[%emt 0:02:19]} a6 {[%emt 0:00:50]} 8. O-O {[%emt 0:00:17]} Be7 {[%emt 0:00:26]} 9. Re1 {[%emt 0:02:28]} O-O {[%emt 0:00:22]} 10. e5 {[%emt 0:00:23]} Nd5 {[%emt 0:01:18]} 11. a3 {[%emt 0:00:16]} f6 {[%emt 0:01:33]} 12. exf6 {[%emt 0:06:53]} Nxf6 {[%emt 0:02:50]} 13. Bc2 {[%emt 0:02:19]} h6 {[%emt 0:00:43]} 14. Qd3 {[%emt 0:00:37]} Qe8 {[%emt 0:09:51]} 15. d5 {[%emt 0:00:44]} Nd8 {[%emt 0:06:28]} 16. Bb3 {[%emt 0:01:02]} Bd6 {[%emt 0:02:09]} 17. dxe6 {[%emt 0:02:30]} Kh8 {[%emt 0:11:09]} 18. e7 {[%emt 0:01:00]} Bxe7 {[%emt 0:01:34]} 19. Nh4 {[%emt 0:00:16]} Nc6 {[%emt 0:07:49]} 20. Ng6+ {[%emt 0:00:27]} Qxg6 {[%emt 0:06:03]} 21. Qxg6 {[%emt 0:00:11]} Bc5 {[%emt 0:01:14]} 22. Be3 {[%emt 0:03:40]} Nd4 {[%emt 0:01:26]} 23. Bxd4 {[%emt 0:00:33]} Bxd4 {[%emt 0:00:15]} 24. Bc2 {[%emt 0:00:29]} Bg4 {[%emt 0:03:36]} 25. Re7 {[%emt 0:00:43]} Rg8 {[%emt 0:04:10]} 26. Nd5 {[%emt 0:00:55]} Bh5 {[%emt 0:01:56]} 27. Qd3 {[%emt 0:00:11]} Rge8 {[%emt 0:01:44]} 28. Nxf6 {[%emt 0:00:24]} 1-0

[Event "Kerkinitida 2021"]
[Site "Yevpatoria"]
[Date "2021.10.20"]
[Round "2.5"]
[White "Cherunov, Svyatoslav"]
[Black "Brusilovskiy, Boris"]
[Result "0-1"]
[ECO "B13"]
[WhiteElo "1240"]
[BlackElo "2067"]
[Annotator "ChessBase"]
[PlyCount "68"]
[EventDate "2021.10.19"]
[EventType "swiss"]
[SourceTitle "playchess.com"]
[Source "ChessBase"]
[SourceQuality "1"]
[TimeControl "5400+30"]

1. e4 {[%emt 0:00:04]} d5 {[%emt 0:02:00]} 2. exd5 {[%emt 0:00:09]} c6 {[%emt 0:00:05]} 3. Nc3 {[%emt 0:00:21]} cxd5 {[%emt 0:00:25]} 4. d4 {[%emt 0:00:17]} Nf6 {[%emt 0:00:46]} 5. Nf3 {[%emt 0:00:17]} Nc6 {[%emt 0:01:51]} 6. Bb5 {[%emt 0:00:24]} Bg4 {[%emt 0:01:47]} 7. h3 {[%emt 0:01:02]} Bh5 {[%emt 0:02:07]} 8. g4 {[%emt 0:01:28]} Bg6 {[%emt 0:00:23]} 9. Ne5 {[%emt 0:01:03]} Rc8 {[%emt 0:00:35]} 10. Qf3 {[%emt 0:01:43]} e6 {[%emt 0:01:27]} 11. h4 {[%emt 0:00:55]} Bb4 {[%emt 0:02:18]} 12. h5 {[%emt 0:00:41]} Be4 {[%emt 0:00:16]} 13. Qf4 {[%emt 0:01:43]} Bxh1 {[%emt 0:01:29]} 14. g5 {[%emt 0:00:39]} O-O {[%emt 0:09:26]} 15. h6 {[%emt 0:01:12]} Nh5 {[%emt 0:03:07]} 16. Qh2 {[%emt 0:03:02]} Nxe5 {[%emt 0:00:29]} 17. Qxe5 {[%emt 0:01:50]} Qc7 {[%emt 0:04:38]} 18. Qxc7 {[%emt 0:08:17]} Rxc7 {[%emt 0:00:25]} 19. Be2 {[%emt 0:00:11]} g6 {[%emt 0:06:46]} 20. Bd2 {[%emt 0:01:24]} Bxc3 {[%emt 0:01:26]} 21. bxc3 {[%emt 0:00:35]} Be4 {[%emt 0:00:24]} 22. O-O-O {[%emt 0:00:54]} Rfc8 {[%emt 0:00:43]} 23. Rg1 {[%emt 0:02:04]} a6 {[%emt 0:02:38]} 24. Rg4 {[%emt 0:04:09]} b5 {[%emt 0:01:03]} 25. c4 {[%emt 0:01:40]} bxc4 {[%emt 0:00:27]} 26. c3 {[%emt 0:00:32]} Rb7 {[%emt 0:00:32]} 27. Kd1 {[%emt 0:00:51]} Rb2 {[%emt 0:01:09]} 28. f3 {[%emt 0:01:36]} Bf5 {[%emt 0:00:13]} 29. Rh4 {[%emt 0:00:45]} Rxa2 {[%emt 0:00:11]} 30. f4 {[%emt 0:00:29]} Rb8 {[%emt 0:00:36]} 31. Ke1 {[%emt 0:00:25]} Rb1+ {[%emt 0:00:47]} 32. Kf2 {[%emt 0:01:01]} Rxd2 {[%emt 0:00:42]} 33. Ke3 {[%emt 0:01:02]} Rbb2 {[%emt 0:01:43]} 34. Bxh5 {[%emt 0:00:56]} Rd3# {[%emt 0:00:16]} 0-1

[Event "Kerkinitida 2021"]
[Site "Yevpatoria"]
[Date "2021.10.20"]
[Round "2.6"]
[White "Tihonov, Gennady"]
[Black "Grinivetskii, Mark"]
[Result "1-0"]
[ECO "C45"]
[WhiteElo "1827"]
[BlackElo "1350"]
[Annotator "NA"]
[PlyCount "151"]
[EventDate "2021.10.19"]
[EventType "swiss"]
[SourceTitle "playchess.com"]
[Source "ChessBase"]
[SourceQuality "1"]
[TimeControl "5400+30"]

1. e4 {[%emt 0:02:23]} e5 {[%emt 0:00:03]} 2. Nf3 {[%emt 0:00:13]} Nc6 {[%emt 0:00:06]} 3. d4 {[%emt 0:00:03]} exd4 {[%emt 0:00:07]} 4. Nxd4 {[%emt 0:00:12]} Bc5 {[%emt 0:00:08]} 5. Nxc6 {[%emt 0:00:29]} Qf6 {[%emt 0:00:08]} 6. Qf3 {[%emt 0:00:12]} Qxf3 {[%emt 0:00:29]} 7. gxf3 {[%emt 0:00:06]} dxc6 {[%emt 0:00:07]} 8. Be3 {[%emt 0:00:07]} Be7 {[%emt 0:00:22]} 9. Nd2 {[%emt 0:02:38]} Be6 {[%emt 0:00:14]} 10. f4 {[%emt 0:01:58]} f5 {[%emt 0:00:10]} 11. e5 {[%emt 0:04:16]} O-O-O {[%emt 0:00:18]} 12. Rg1 {[%emt 0:04:42]} g6 {[%emt 0:00:11]} 13. Be2 {[%emt 0:01:21]} Nh6 {[%emt 0:00:26]} 14. h3 {[%emt 0:01:34]} a6 {[%emt 0:00:14]} 15. Nb3 {[%emt 0:02:05]} Rhg8 {[%emt 0:00:52]} 16. c4 {[%emt 0:03:15]} Nf7 {[%emt 0:00:51]} 17. Nd4 {[%emt 0:00:46]} Bb4+ {[%emt 0:00:44]} 18. Kf1 {[%emt 0:00:14]} Rde8 {[%emt 0:01:04]} 19. Nxe6 {[%emt 0:01:46]} Rxe6 {[%emt 0:00:14]} 20. c5 {[%emt 0:00:42]} Rd8 {[%emt 0:00:37]} 21. Bc4 {[%emt 0:03:43]} Re7 {[%emt 0:00:21]} 22. Ke2 {[%emt 0:00:58]} Nxe5 {[%emt 0:03:09]} 23. fxe5 {[%emt 0:00:14]} Rxe5 {[%emt 0:00:04]} 24. Kf3 {[%emt 0:05:38]} Bxc5 {[%emt 0:00:38]} 25. Bg5 {[%emt 0:02:51]} Be7 {[%emt 0:01:43]} 26. Bxe7 {[%emt 0:01:20]} Rxe7 {[%emt 0:00:06]} 27. Rad1 {[%emt 0:00:38]} Rde8 {[%emt 0:00:28]} 28. Bd3 {[%emt 0:01:01]} Rd7 {[%emt 0:01:32]} 29. Bc2 {[%emt 0:02:26]} Red8 {[%emt 0:01:03]} 30. Rxd7 {[%emt 0:02:17]} Rxd7 {[%emt 0:00:08]} 31. Rd1 {[%emt 0:00:33]} Re7 {[%emt 0:00:29]} 32. h4 {[%emt 0:00:38]} Re5 {[%emt 0:00:20]} 33. Bd3 {[%emt 0:00:18]} Rd5 {[%emt 0:00:43]} 34. Bc2 {[%emt 0:02:01]} Rb5 {[%emt 0:00:21]} 35. Rd2 {[%emt 0:02:28]} Rb4 {[%emt 0:00:43]} 36. h5 {[%emt 0:01:25]} Rh4 {[%emt 0:00:40]} 37. hxg6 {[%emt 0:00:09]} hxg6 {[%emt 0:00:04]} 38. Bb3 {[%emt 0:00:44]} Rg4 {[%emt 0:00:58]} 39. Be6+ {[%emt 0:00:30]} Kb8 {[%emt 0:00:38]} 40. Rd7 {[%emt 0:01:25]} Re4 {[%emt 0:00:44]} 41. Bf7 {[%emt 0:03:11]} Rg4 {[%emt 0:00:24]} 42. Rd8+ {[%emt 0:00:43]} Ka7 {[%emt 0:00:09]} 43. Rg8 {[%emt 0:00:28]} g5 {[%emt 0:00:11]} 44. Be6 {[%emt 0:04:08]} Re4 {[%emt 0:01:30]} 45. Rg6 {[%emt 0:04:50]} Kb6 {[%emt 0:02:13]} 46. Kg3 {[%emt 0:04:07]} Rg4+ {[%emt 0:00:38]} 47. Kf3 {[%emt 0:00:43]} Rf4+ {[%emt 0:00:16]} 48. Ke3 {[%emt 0:00:56]} Re4+ {[%emt 0:00:27]} 49. Kd2 {[%emt 0:00:31]} Rf4 {[%emt 0:00:31]} 50. Ke2 {[%emt 0:00:30]} g4 {[%emt 0:00:41]} 51. Rf6 {[%emt 0:00:50]} Re4+ {[%emt 0:00:16]} 52. Kf1 {[%emt 0:00:26]} Rd4 {[%emt 0:02:29]} 53. Rxf5 {[%emt 0:00:44]} Rd2 {[%emt 0:00:10]} 54. b4 {[%emt 0:00:18]} Rd4 {[%emt 0:00:15]} 55. Rg5 {[%emt 0:03:15]} Rxb4 {[%emt 0:00:15]} 56. Rxg4 {[%emt 0:01:01]} Rb1+ {[%emt 0:00:54]} 57. Ke2 {[%emt 0:00:23]} Kc5 {[%emt 0:00:07]} 58. f4 {[%emt 0:01:32]} Kd6 {[%emt 0:00:08]} 59. f5 {[%emt 0:00:27]} Rb5 {[%emt 0:00:33]} 60. Rd4+ {[%emt 0:00:56]} Kc5 {[%emt 0:01:09]} 61. Rd7 {[%emt 0:01:32]} Kb6 {[%emt 0:00:25]} 62. Kf3 {[%emt 0:00:31]} Kc5 {[%emt 0:00:37]} 63. f6 {[%emt 0:00:41]} Rb1 {[%emt 0:00:10]} 64. Bf5 {[%emt 0:00:57]} Rf1+ {[%emt 0:00:17]} 65. Kg4 {[%emt 0:00:32]} Rg1+ {[%emt 0:00:06]} 66. Kh5 {[%emt 0:00:28]} Rh1+ {[%emt 0:00:11]} 67. Kg6 {[%emt 0:00:13]} Rg1+ {[%emt 0:00:10]} 68. Kf7 {[%emt 0:00:37]} Rf1 {[%emt 0:00:10]} 69. Be6 {[%emt 0:00:16]} Rg1 {[%emt 0:00:21]} 70. Ke7 {[%emt 0:00:23]} Kb6 {[%emt 0:00:33]} 71. f7 {[%emt 0:00:21]} Rf1 {[%emt 0:00:06]} 72. f8=Q {[%emt 0:00:26]} Rxf8 {[%emt 0:00:07]} 73. Kxf8 {[%emt 0:00:09]} c5 {[%emt 0:00:11]} 74. Rd2 {[%emt 0:00:43]} Ka5 {[%emt 0:00:11]} 75. Ke7 {[%emt 0:00:21]} Kb6 {[%emt 0:00:12]} 76. Kd7 {[%emt 0:00:17]} 1-0

[Event "Kerkinitida 2021"]
[Site "Yevpatoria"]
[Date "2021.10.20"]
[Round "2.7"]
[White "Samson, Anna Rao. T"]
[Black "Polukhin, Sergey"]
[Result "0-1"]
[ECO "B30"]
[WhiteElo "1573"]
[BlackElo "1410"]
[Annotator "NA"]
[PlyCount "72"]
[EventDate "2021.10.19"]
[EventType "swiss"]
[SourceTitle "playchess.com"]
[Source "ChessBase"]
[SourceQuality "1"]
[TimeControl "5400+30"]

1. e4 {[%emt 0:00:03]} c5 {[%emt 0:00:03]} 2. Nf3 {[%emt 0:00:05]} Nc6 {[%emt 0:00:05]} 3. Bb5 {[%emt 0:00:13]} g6 {[%emt 0:00:10]} 4. Nc3 {[%emt 0:00:25]} Bg7 {[%emt 0:00:10]} 5. d3 {[%emt 0:00:20]} Nf6 {[%emt 0:00:44]} 6. Bg5 {[%emt 0:00:28]} Nd4 {[%emt 0:01:19]} 7. Nxd4 {[%emt 0:01:02]} cxd4 {[%emt 0:00:04]} 8. Nd5 {[%emt 0:00:13]} Nxd5 {[%emt 0:00:47]} 9. exd5 {[%emt 0:00:09]} Qa5+ {[%emt 0:00:03]} 10. Bd2 {[%emt 0:00:51]} Qxb5 {[%emt 0:00:02]} 11. O-O {[%emt 0:01:44]} Qxd5 {[%emt 0:00:11]} 12. Re1 {[%emt 0:00:23]} e6 {[%emt 0:00:31]} 13. Rc1 {[%emt 0:01:33]} O-O {[%emt 0:00:07]} 14. c3 {[%emt 0:01:22]} dxc3 {[%emt 0:00:15]} 15. Bxc3 {[%emt 0:00:21]} Bxc3 {[%emt 0:00:27]} 16. Rxc3 {[%emt 0:00:07]} b5 {[%emt 0:00:13]} 17. Rb3 {[%emt 0:01:24]} Bb7 {[%emt 0:00:16]} 18. f3 {[%emt 0:00:05]} a5 {[%emt 0:00:13]} 19. Qd2 {[%emt 0:01:17]} a4 {[%emt 0:00:39]} 20. Rb4 {[%emt 0:00:07]} a3 {[%emt 0:00:31]} 21. bxa3 {[%emt 0:00:26]} Rxa3 {[%emt 0:00:06]} 22. Qb2 {[%emt 0:00:20]} Rxa2 {[%emt 0:01:00]} 23. Qb1 {[%emt 0:01:07]} Qc5+ {[%emt 0:00:08]} 24. Kh1 {[%emt 0:00:19]} Qf2 {[%emt 0:00:07]} 25. Rg1 {[%emt 0:01:27]} Bxf3 {[%emt 0:00:06]} 26. Qf1 {[%emt 0:01:29]} Qxf1 {[%emt 0:00:12]} 27. Rxf1 {[%emt 0:00:07]} Bxg2+ {[%emt 0:00:05]} 28. Kg1 {[%emt 0:00:04]} Bxf1 {[%emt 0:00:05]} 29. Kxf1 {[%emt 0:00:10]} Rc8 {[%emt 0:00:08]} 30. Rb1 {[%emt 0:00:18]} b4 {[%emt 0:00:04]} 31. Ke1 {[%emt 0:00:39]} b3 {[%emt 0:00:06]} 32. Kd1 {[%emt 0:00:27]} Rcc2 {[%emt 0:00:20]} 33. Rxb3 {[%emt 0:00:30]} Rxh2 {[%emt 0:00:01]} 34. Rb2 {[%emt 0:00:45]} Raxb2 {[%emt 0:00:10]} 35. Kc1 {[%emt 0:00:05]} Rbg2 {[%emt 0:00:05]} 36. Kd1 {[%emt 0:00:15]} Rh1# {[%emt 0:00:06]} 0-1

[Event "Kerkinitida 2021"]
[Site "Yevpatoria"]
[Date "2021.10.20"]
[Round "2.8"]
[White "Iljin, Viktor"]
[Black "Aryslanov, Leonidas"]
[Result "1-0"]
[ECO "A43"]
[WhiteElo "1066"]
[BlackElo "1121"]
[Annotator "NA"]
[PlyCount "109"]
[EventDate "2021.10.19"]
[EventType "swiss"]
[SourceTitle "playchess.com"]
[Source "ChessBase"]
[SourceQuality "1"]
[TimeControl "5400+30"]

1. d4 {[%emt 0:00:00]} c5 {[%emt 0:00:57]} 2. dxc5 {[%emt 0:01:13]} Nc6 {[%emt 0:00:07]} 3. Nf3 {[%emt 0:00:10]} e6 {[%emt 0:00:34]} 4. Be3 {[%emt 0:01:51]} Qa5+ {[%emt 0:01:36]} 5. Qd2 {[%emt 0:01:28]} Qxd2+ {[%emt 0:00:15]} 6. Nbxd2 {[%emt 0:00:11]} f5 {[%emt 0:01:24]} 7. Nb3 {[%emt 0:02:29]} e5 {[%emt 0:00:57]} 8. g3 {[%emt 0:00:34]} Nb4 {[%emt 0:01:21]} 9. Kd1 {[%emt 0:00:55]} d6 {[%emt 0:00:56]} 10. cxd6 {[%emt 0:00:25]} Bxd6 {[%emt 0:00:13]} 11. Bc5 {[%emt 0:00:16]} Bxc5 {[%emt 0:00:37]} 12. Nxc5 {[%emt 0:01:05]} Nf6 {[%emt 0:00:28]} 13. Nxe5 {[%emt 0:00:35]} b6 {[%emt 0:00:50]} 14. Ncd3 {[%emt 0:00:20]} Nxd3 {[%emt 0:01:39]} 15. Nxd3 {[%emt 0:00:12]} O-O {[%emt 0:00:16]} 16. Bg2 {[%emt 0:00:21]} Rb8 {[%emt 0:00:31]} 17. Kd2 {[%emt 0:00:37]} Rd8 {[%emt 0:00:31]} 18. Rad1 {[%emt 0:00:13]} Ng4 {[%emt 0:02:00]} 19. Kc1 {[%emt 0:00:50]} Ba6 {[%emt 0:00:58]} 20. Rdf1 {[%emt 0:01:12]} Bxd3 {[%emt 0:00:47]} 21. exd3 {[%emt 0:00:18]} Rbc8 {[%emt 0:01:09]} 22. Kd2 {[%emt 0:00:41]} a5 {[%emt 0:01:32]} 23. Bh3 {[%emt 0:00:33]} b5 {[%emt 0:00:28]} 24. Bxg4 {[%emt 0:00:13]} fxg4 {[%emt 0:00:10]} 25. Re1 {[%emt 0:00:06]} Rf8 {[%emt 0:00:48]} 26. Re2 {[%emt 0:00:14]} a4 {[%emt 0:00:33]} 27. a3 {[%emt 0:00:09]} Rb8 {[%emt 0:00:33]} 28. Rhe1 {[%emt 0:00:28]} b4 {[%emt 0:00:31]} 29. axb4 {[%emt 0:00:29]} Rxb4 {[%emt 0:00:10]} 30. Kc1 {[%emt 0:00:16]} Rfb8 {[%emt 0:01:26]} 31. Re8+ {[%emt 0:00:15]} Kf7 {[%emt 0:00:45]} 32. Rxb8 {[%emt 0:00:04]} Rxb8 {[%emt 0:00:13]} 33. Re4 {[%emt 0:00:01]} Ra8 {[%emt 0:00:34]} 34. Rxg4 {[%emt 0:00:08]} a3 {[%emt 0:00:09]} 35. bxa3 {[%emt 0:00:07]} Rxa3 {[%emt 0:00:08]} 36. Kb2 {[%emt 0:00:10]} Ra5 {[%emt 0:00:18]} 37. c4 {[%emt 0:00:18]} Rf5 {[%emt 0:00:24]} 38. Rf4 {[%emt 0:00:09]} Rxf4 {[%emt 0:00:13]} 39. gxf4 {[%emt 0:00:06]} Ke7 {[%emt 0:00:09]} 40. d4 {[%emt 0:00:04]} Kd7 {[%emt 0:00:32]} 41. Kb3 {[%emt 0:00:10]} g6 {[%emt 0:00:00]} 42. f3 {[%emt 0:00:00]} h6 {[%emt 0:00:07]} 43. h3 {[%emt 0:00:00]} g5 {[%emt 0:00:21]} 44. f5 {[%emt 0:00:07]} Ke7 {[%emt 0:00:15]} 45. c5 {[%emt 0:00:10]} Kf6 {[%emt 0:00:15]} 46. c6 {[%emt 0:00:28]} Kxf5 {[%emt 0:00:15]} 47. c7 {[%emt 0:00:16]} Kf4 {[%emt 0:00:25]} 48. c8=Q {[%emt 0:00:11]} Kxf3 {[%emt 0:00:08]} 49. d5 {[%emt 0:00:06]} h5 {[%emt 0:00:19]} 50. Qf5+ {[%emt 0:00:12]} Ke3 {[%emt 0:00:17]} 51. Qxg5+ {[%emt 0:00:07]} Kd4 {[%emt 0:00:10]} 52. d6 {[%emt 0:00:11]} Ke4 {[%emt 0:00:16]} 53. d7 {[%emt 0:00:18]} Kd3 {[%emt 0:00:31]} 54. Qe7 {[%emt 0:00:34]} Kd4 {[%emt 0:00:25]} 55. d8=R# {[%emt 0:00:10]} 1-0

[Event "Kerkinitida 2021"]
[Site "Yevpatoria"]
[Date "2021.10.21"]
[Round "3.1"]
[White "Truskavetsky, Alexandr"]
[Black "Triapishko, Alexandr"]
[Result "1/2-1/2"]
[ECO "C56"]
[WhiteElo "2371"]
[BlackElo "2506"]
[Annotator "ChessBase"]
[PlyCount "84"]
[EventDate "2021.10.19"]
[EventType "swiss"]
[SourceTitle "playchess.com"]
[Source "ChessBase"]
[SourceQuality "1"]
[TimeControl "5400+30"]

1. e4 {[%emt 0:04:00]} e5 {[%emt 0:06:41]} 2. Nf3 {[%emt 0:00:14]} Nc6 {[%emt 0:00:19]} 3. d4 {[%emt 0:01:38]} exd4 {[%emt 0:01:17]} 4. Bc4 {[%emt 0:00:44]} Nf6 {[%emt 0:21:06]} 5. e5 {[%emt 0:01:13]} d5 {[%emt 0:07:09]} 6. Bb5 {[%emt 0:00:39]} Nd7 {[%emt 0:02:05]} 7. O-O {[%emt 0:11:00]} Be7 {[%emt 0:02:56]} 8. Re1 {[%emt 0:35:41]} O-O {[%emt 0:05:33]} 9. Bxc6 {[%emt 0:00:30]} bxc6 {[%emt 0:00:08]} 10. Nxd4 {[%emt 0:00:06]} Nb8 {[%emt 0:02:23]} 11. f4 {[%emt 0:14:21]} c5 {[%emt 0:04:03]} 12. Nf3 {[%emt 0:00:06]} Nc6 {[%emt 0:07:20]} 13. Nc3 {[%emt 0:04:13]} d4 {[%emt 0:05:01]} 14. Ne4 {[%emt 0:00:37]} Qd5 {[%emt 0:07:34]} 15. b3 {[%emt 0:04:49]} c4 {[%emt 0:09:26]} 16. Qe2 {[%emt 0:01:39]} c3 {[%emt 0:03:50]} 17. Rd1 {[%emt 0:06:55]} Bf5 {[%emt 0:00:46]} 18. Ng3 {[%emt 0:00:56]} Bg4 {[%emt 0:01:30]} 19. Ne4 {[%emt 0:04:16]} Rad8 {[%emt 0:03:56]} 20. h3 {[%emt 0:00:15]} Bf5 {[%emt 0:01:46]} 21. Ng3 {[%emt 0:00:57]} d3 {[%emt 0:03:09]} 22. Qf1 {[%emt 0:02:50]} Qc5+ {[%emt 0:01:53]} 23. Kh2 {[%emt 0:00:12]} Bc8 {[%emt 0:00:50]} 24. cxd3 {[%emt 0:02:33]} c2 {[%emt 0:00:55]} 25. Re1 {[%emt 0:00:20]} Qd5 {[%emt 0:00:42]} 26. f5 {[%emt 0:01:24]} Bb4 {[%emt 0:00:29]} 27. Bd2 {[%emt 0:01:13]} Bxd2 {[%emt 0:00:27]} 28. Nxd2 {[%emt 0:00:02]} Nxe5 {[%emt 0:00:30]} 29. Rec1 {[%emt 0:00:43]} Ba6 {[%emt 0:00:43]} 30. Nc4 {[%emt 0:00:17]} Bxc4 {[%emt 0:00:26]} 31. bxc4 {[%emt 0:00:54]} Qxd3 {[%emt 0:00:35]} 32. Qxd3 {[%emt 0:00:05]} Rxd3 {[%emt 0:00:08]} 33. Rxc2 {[%emt 0:00:06]} Rb8 {[%emt 0:00:21]} 34. f6 {[%emt 0:01:18]} gxf6 {[%emt 0:00:49]} 35. Rf1 {[%emt 0:00:12]} Nd7 {[%emt 0:00:41]} 36. Nf5 {[%emt 0:00:40]} Kf8 {[%emt 0:00:28]} 37. Rf4 {[%emt 0:00:32]} Ne5 {[%emt 0:00:29]} 38. Rh4 {[%emt 0:00:30]} Kg8 {[%emt 0:00:12]} 39. Ne7+ {[%emt 0:00:31]} Kg7 {[%emt 0:00:33]} 40. Nf5+ {[%emt 0:00:19]} Kg8 {[%emt 0:00:33]} 41. Ne7+ {[%emt 0:00:09]} Kg7 {[%emt 0:00:41]} 42. Nf5+ {[%emt 0:00:18]} Kg8 {[%emt 0:00:27]} 1/2-1/2

[Event "Kerkinitida 2021"]
[Site "Yevpatoria"]
[Date "2021.10.21"]
[Round "3.2"]
[White "Tomilova, Elena"]
[Black "Chos, Alexey"]
[Result "1-0"]
[ECO "E61"]
[WhiteElo "2256"]
[BlackElo "2296"]
[Annotator "ChessBase"]
[PlyCount "172"]
[EventDate "2021.10.19"]
[EventType "swiss"]
[SourceTitle "playchess.com"]
[Source "ChessBase"]
[SourceQuality "1"]
[TimeControl "5400+30"]

1. d4 {[%emt 0:00:03]} Nf6 {[%emt 0:08:42]} 2. Nf3 {[%emt 0:00:06]} g6 {[%emt 0:00:33]} 3. c4 {[%emt 0:00:15]} Bg7 {[%emt 0:00:05]} 4. e3 {[%emt 0:00:04]} O-O {[%emt 0:00:10]} 5. Be2 {[%emt 0:00:05]} d6 {[%emt 0:00:14]} 6. Nc3 {[%emt 0:00:05]} Nc6 {[%emt 0:00:51]} 7. d5 {[%emt 0:00:42]} Nb8 {[%emt 0:00:01]} 8. e4 {[%emt 0:01:39]} c5 {[%emt 0:00:30]} 9. h3 {[%emt 0:00:24]} e6 {[%emt 0:00:06]} 10. O-O {[%emt 0:00:22]} exd5 {[%emt 0:00:06]} 11. exd5 {[%emt 0:00:08]} Re8 {[%emt 0:01:04]} 12. Re1 {[%emt 0:00:17]} Ne4 {[%emt 0:01:00]} 13. Nxe4 {[%emt 0:02:35]} Rxe4 {[%emt 0:00:01]} 14. Bd3 {[%emt 0:00:11]} Rxe1+ {[%emt 0:00:11]} 15. Qxe1 {[%emt 0:00:10]} Na6 {[%emt 0:02:49]} 16. Bg5 {[%emt 0:06:34]} Bf6 {[%emt 0:00:16]} 17. Bxf6 {[%emt 0:04:00]} Qxf6 {[%emt 0:00:12]} 18. Qe8+ {[%emt 0:00:20]} Kg7 {[%emt 0:00:01]} 19. Re1 {[%emt 0:03:49]} Rb8 {[%emt 0:00:07]} 20. Qe7 {[%emt 0:08:36]} Qxe7 {[%emt 0:00:55]} 21. Rxe7 {[%emt 0:00:01]} Kf8 {[%emt 0:00:21]} 22. Re3 {[%emt 0:02:34]} Nb4 {[%emt 0:00:42]} 23. Bf1 {[%emt 0:04:19]} h6 {[%emt 0:04:22]} 24. a3 {[%emt 0:01:03]} Na6 {[%emt 0:00:44]} 25. g4 {[%emt 0:04:29]} Nc7 {[%emt 0:02:31]} 26. Nd2 {[%emt 0:04:07]} Bd7 {[%emt 0:00:12]} 27. Ne4 {[%emt 0:01:26]} Ne8 {[%emt 0:00:11]} 28. Be2 {[%emt 0:06:15]} b6 {[%emt 0:00:56]} 29. Kf1 {[%emt 0:02:51]} Rb7 {[%emt 0:00:52]} 30. Ke1 {[%emt 0:01:47]} Bc8 {[%emt 0:00:08]} 31. Bd1 {[%emt 0:00:28]} a6 {[%emt 0:01:52]} 32. a4 {[%emt 0:00:43]} Re7 {[%emt 0:00:30]} 33. Kd2 {[%emt 0:00:22]} f5 {[%emt 0:00:22]} 34. Ng3 {[%emt 0:02:19]} Rxe3 {[%emt 0:00:42]} 35. Kxe3 {[%emt 0:00:13]} Ng7 {[%emt 0:00:23]} 36. f4 {[%emt 0:02:57]} fxg4 {[%emt 0:02:10]} 37. hxg4 {[%emt 0:00:38]} Ke7 {[%emt 0:00:30]} 38. Be2 {[%emt 0:00:50]} Bd7 {[%emt 0:00:17]} 39. b3 {[%emt 0:00:19]} Kf7 {[%emt 0:01:19]} 40. Ne4 {[%emt 0:00:24]} Ne8 {[%emt 0:00:52]} 41. Bf3 {[%emt 0:02:10]} Ke7 {[%emt 0:00:25]} 42. Ng3 {[%emt 0:01:10]} Ng7 {[%emt 0:01:21]} 43. Be2 {[%emt 0:02:28]} Be8 {[%emt 0:00:23]} 44. f5 {[%emt 0:02:18]} gxf5 {[%emt 0:00:50]} 45. gxf5 {[%emt 0:00:08]} Bf7 {[%emt 0:01:42]} 46. Kf4 {[%emt 0:00:25]} Ne8 {[%emt 0:00:40]} 47. Bd1 {[%emt 0:03:11]} Nf6 {[%emt 0:00:11]} 48. Be2 {[%emt 0:00:27]} Bg8 {[%emt 0:01:17]} 49. Bf3 {[%emt 0:00:22]} Bh7 {[%emt 0:00:16]} 50. Be2 {[%emt 0:00:22]} Bg8 {[%emt 0:00:50]} 51. Bf3 {[%emt 0:00:10]} Bf7 {[%emt 0:00:10]} 52. Be2 {[%emt 0:00:16]} Be8 {[%emt 0:01:07]} 53. Bf3 {[%emt 0:00:18]} Bd7 {[%emt 0:00:06]} 54. Bg2 {[%emt 0:01:02]} b5 {[%emt 0:03:05]} 55. cxb5 {[%emt 0:08:31]} axb5 {[%emt 0:00:13]} 56. a5 {[%emt 0:00:03]} Bc8 {[%emt 0:00:03]} 57. Nf1 {[%emt 0:02:12]} Nd7 {[%emt 0:03:14]} 58. Ng3 {[%emt 0:01:33]} Bb7 {[%emt 0:01:16]} 59. Nf1 {[%emt 0:06:46]} Ne5 {[%emt 0:00:36]} 60. Be4 {[%emt 0:01:59]} b4 {[%emt 0:02:01]} 61. Ng3 {[%emt 0:01:47]} Ba6 {[%emt 0:00:49]} 62. Bc2 {[%emt 0:02:12]} c4 {[%emt 0:01:17]} 63. Ne4 {[%emt 0:00:56]} Nd7 {[%emt 0:00:37]} 64. bxc4 {[%emt 0:01:28]} Bxc4 {[%emt 0:00:02]} 65. Ba4 {[%emt 0:00:14]} Nf6 {[%emt 0:01:03]} 66. Nxf6 {[%emt 0:04:47]} Kxf6 {[%emt 0:00:03]} 67. Ke4 {[%emt 0:00:07]} h5 {[%emt 0:00:58]} 68. Kd4 {[%emt 0:00:12]} Ba6 {[%emt 0:00:09]} 69. Bd1 {[%emt 0:01:17]} h4 {[%emt 0:01:03]} 70. Bg4 {[%emt 0:00:02]} Kg5 {[%emt 0:00:45]} 71. Bh3 {[%emt 0:00:22]} Be2 {[%emt 0:01:31]} 72. Ke3 {[%emt 0:00:27]} b3 {[%emt 0:00:54]} 73. Kd2 {[%emt 0:00:33]} Bc4 {[%emt 0:00:12]} 74. f6 {[%emt 0:02:45]} Kxf6 {[%emt 0:00:11]} 75. Bc8 {[%emt 0:00:10]} Ke5 {[%emt 0:01:30]} 76. a6 {[%emt 0:01:40]} h3 {[%emt 0:01:10]} 77. Bxh3 {[%emt 0:00:43]} Bxa6 {[%emt 0:00:03]} 78. Kc3 {[%emt 0:00:52]} Bc4 {[%emt 0:00:04]} 79. Bg2 {[%emt 0:01:14]} Bxd5 {[%emt 0:00:29]} 80. Bf1 {[%emt 0:00:09]} Be6 {[%emt 0:00:15]} 81. Bd3 {[%emt 0:00:12]} Kf4 {[%emt 0:00:09]} 82. Bh7 {[%emt 0:00:33]} Bf5 {[%emt 0:02:02]} 83. Bg8 {[%emt 0:00:12]} Bc2 {[%emt 0:00:06]} 84. Kd4 {[%emt 0:00:01]} b2 {[%emt 0:01:43]} 85. Ba2 {[%emt 0:00:35]} Be4 {[%emt 0:00:03]} 86. Kc3 {[%emt 0:00:15]} b1=Q {[%emt 0:00:07]} 1-0